[Event "Titled Tuesday Blitz March 21 Late 2023"]
[White "Hartikainen, Jarmo"]
[Black "Kalajzic, Ivan"]
[WhiteFideId "503134"]
[BlackFideId "14506378"]
[WhiteElo "2182"]
[BlackElo "2203"]
[Result "1-0"]
[Round "08"]
[TimeControl "180+2"]
[Date "2023.03.21"]
[WhiteClock "0:00:06"]
[BlackClock "0:00:02"]

1. e4 {[%clk 0:03:00]}  c6 {[%clk 0:02:59]} 2. d4 {[%clk 0:03:00]}  d5 {[%clk 0:02:59]} 3. Nc3 {[%clk 0:03:01]}  b5 {[%clk 0:02:59]} 4. a3 {[%clk 0:02:55]}  dxe4 {[%clk 0:02:59]} 5. Nxe4 {[%clk 0:02:55]}  Nf6 {[%clk 0:02:59]} 6. Nxf6+ {[%clk 0:02:54]}  gxf6 {[%clk 0:02:59]} 7. c4 {[%clk 0:02:46]}  bxc4 {[%clk 0:02:50]} 8. Bxc4 {[%clk 0:02:44]}  Bf5 {[%clk 0:02:46]} 9. Nf3 {[%clk 0:02:11]}  e6 {[%clk 0:02:45]} 10. Bf4 {[%clk 0:02:07]}  Bd6 {[%clk 0:02:41]} 11. Bg3 {[%clk 0:01:55]}  Qc7 {[%clk 0:02:15]} 12. Qd2 {[%clk 0:01:50]}  Be4 {[%clk 0:02:08]} 13. Rc1 {[%clk 0:01:36]}  Ke7 {[%clk 0:01:48]} 14. Qh6 {[%clk 0:01:18]}  Nd7 {[%clk 0:01:36]} 15. O-O {[%clk 0:01:01]}  Rag8 {[%clk 0:01:31]} 16. Rfe1 {[%clk 0:00:56]}  Rg6 {[%clk 0:01:24]} 17. Qe3 {[%clk 0:00:47]}  f5 {[%clk 0:01:02]} 18. d5 {[%clk 0:00:40]}  cxd5 {[%clk 0:00:35]} 19. Bxd5 {[%clk 0:00:36]}  Qb6 {[%clk 0:00:36]} 20. Bxe4 {[%clk 0:00:34]}  Qxe3 {[%clk 0:00:32]} 21. Rxe3 {[%clk 0:00:34]}  fxe4 {[%clk 0:00:33]} 22. Rxe4 {[%clk 0:00:34]}  Bxg3 {[%clk 0:00:28]} 23. hxg3 {[%clk 0:00:34]}  Rb8 {[%clk 0:00:27]} 24. b4 {[%clk 0:00:33]}  Rb7 {[%clk 0:00:24]} 25. Rec4 {[%clk 0:00:33]}  e5 {[%clk 0:00:21]} 26. Rc7 {[%clk 0:00:32]}  Rgb6 {[%clk 0:00:20]} 27. Nxe5 {[%clk 0:00:28]}  Rxc7 {[%clk 0:00:18]} 28. Rxc7 {[%clk 0:00:28]}  Kd6 {[%clk 0:00:18]} 29. Rxd7+ {[%clk 0:00:28]}  Kxe5 {[%clk 0:00:19]} 30. Rxf7 {[%clk 0:00:28]}  a5 {[%clk 0:00:16]} 31. Rf4 {[%clk 0:00:26]}  a4 {[%clk 0:00:15]} 32. Kf1 {[%clk 0:00:20]}  Rc6 {[%clk 0:00:15]} 33. Ke2 {[%clk 0:00:20]}  Rc2+ {[%clk 0:00:14]} 34. Kd3 {[%clk 0:00:18]}  Ra2 {[%clk 0:00:13]} 35. Re4+ {[%clk 0:00:16]}  Kf5 {[%clk 0:00:13]} 36. Rf4+ {[%clk 0:00:16]}  Kg5 {[%clk 0:00:13]} 37. Rf7 {[%clk 0:00:14]}  Rxa3+ {[%clk 0:00:12]} 38. Kc4 {[%clk 0:00:14]}  Kg6 {[%clk 0:00:13]} 39. Ra7 {[%clk 0:00:14]}  Ra2 {[%clk 0:00:14]} 40. b5 {[%clk 0:00:14]}  Rxf2 {[%clk 0:00:13]} 41. Rxa4 {[%clk 0:00:14]}  Rxg2 {[%clk 0:00:13]} 42. b6 {[%clk 0:00:14]}  Rxg3 {[%clk 0:00:10]} 43. b7 {[%clk 0:00:15]}  Rg4+ {[%clk 0:00:09]} 44. Kc5 {[%clk 0:00:12]}  Rxa4 {[%clk 0:00:08]} 45. b8=Q {[%clk 0:00:13]}  Rg4 {[%clk 0:00:07]} 46. Qe8+ {[%clk 0:00:12]}  Kg5 {[%clk 0:00:05]} 47. Kd5 {[%clk 0:00:12]}  h5 {[%clk 0:00:05]} 48. Ke5 {[%clk 0:00:13]}  Kh4 {[%clk 0:00:05]} 49. Qe7+ {[%clk 0:00:13]}  Kg3 {[%clk 0:00:05]} 50. Qh7 {[%clk 0:00:12]}  h4 {[%clk 0:00:05]} 51. Qd3+ {[%clk 0:00:12]}  Kg2 {[%clk 0:00:05]} 52. Kf5 {[%clk 0:00:11]}  Rg3 {[%clk 0:00:05]} 53. Qe2+ {[%clk 0:00:11]}  Kh3 {[%clk 0:00:05]} 54. Qf1+ {[%clk 0:00:10]}  Kh2 {[%clk 0:00:05]} 55. Qf2+ {[%clk 0:00:10]}  Rg2 {[%clk 0:00:05]} 56. Qxh4+ {[%clk 0:00:10]}  Kg1 {[%clk 0:00:05]} 57. Kf4 {[%clk 0:00:09]}  Ra2 {[%clk 0:00:02]} 58. Qg5+ {[%clk 0:00:08]}  Kh1 {[%clk 0:00:02]} 59. Qb5 {[%clk 0:00:07]}  Rf2+ {[%clk 0:00:01]} 60. Ke3 {[%clk 0:00:06]}  Rg2 {[%clk 0:00:02]} 61. Qc6 {[%clk 0:00:06]} 1-0


[Site "https://www.chess.com"]

[Event "Titled Tuesday Blitz March 21 Late 2023"]
[White "MunichMouse"]
[Black "Bongo Akanga Ndjila, Barthelemy"]
[BlackFideId "10609431"]
[WhiteElo "2309"]
[BlackElo "1768"]
[Result "1-0"]
[Round "08"]
[TimeControl "180+2"]
[Date "2023.03.21"]
[WhiteClock "0:01:55"]
[BlackClock "0:01:20"]

1. d4 {[%clk 0:03:00]}  d5 {[%clk 0:02:55]} 2. c4 {[%clk 0:03:01]}  e6 {[%clk 0:02:55]} 3. Nf3 {[%clk 0:03:01]}  a6 {[%clk 0:02:56]} 4. Nbd2 {[%clk 0:02:56]}  Nf6 {[%clk 0:02:48]} 5. g3 {[%clk 0:02:56]}  Nc6 {[%clk 0:02:44]} 6. Bg2 {[%clk 0:02:55]}  Bb4 {[%clk 0:02:33]} 7. O-O {[%clk 0:02:54]}  Bxd2 {[%clk 0:02:32]} 8. Bxd2 {[%clk 0:02:46]}  dxc4 {[%clk 0:02:31]} 9. Bg5 {[%clk 0:02:42]}  h6 {[%clk 0:02:27]} 10. Bxf6 {[%clk 0:02:43]}  Qxf6 {[%clk 0:02:27]} 11. e4 {[%clk 0:02:44]}  Qe7 {[%clk 0:02:14]} 12. d5 {[%clk 0:02:37]}  Nb8 {[%clk 0:01:58]} 13. Qd4 {[%clk 0:02:36]}  O-O {[%clk 0:01:51]} 14. Qxc4 {[%clk 0:02:35]}  b5 {[%clk 0:01:46]} 15. Qc3 {[%clk 0:02:34]}  exd5 {[%clk 0:01:45]} 16. exd5 {[%clk 0:02:33]}  Bb7 {[%clk 0:01:45]} 17. Nd4 {[%clk 0:02:33]}  Nd7 {[%clk 0:01:42]} 18. Qxc7 {[%clk 0:02:25]}  Rab8 {[%clk 0:01:34]} 19. d6 {[%clk 0:02:04]}  Qf6 {[%clk 0:01:24]} 20. Bxb7 {[%clk 0:02:00]}  Rxb7 {[%clk 0:01:21]} 21. Qxb7 {[%clk 0:01:55]}  Qxd6 {[%clk 0:01:20]} 1-0


[Site "https://www.chess.com"]

[Event "Titled Tuesday Blitz March 21 Late 2023"]
[White "Vaglio Munoz, Jaime"]
[Black "Manu_ChessExcelsior"]
[WhiteFideId "6500145"]
[WhiteElo "2199"]
[BlackElo "2058"]
[Result "0-1"]
[Round "08"]
[TimeControl "180+2"]
[Date "2023.03.21"]
[WhiteClock "0:00:03"]
[BlackClock "0:00:08"]

1. e4 {[%clk 0:03:00]}  c5 {[%clk 0:02:59]} 2. a3 {[%clk 0:02:59]}  g6 {[%clk 0:02:52]} 3. b4 {[%clk 0:02:57]}  cxb4 {[%clk 0:02:51]} 4. axb4 {[%clk 0:02:57]}  Bg7 {[%clk 0:02:52]} 5. c3 {[%clk 0:02:57]}  d6 {[%clk 0:02:51]} 6. d4 {[%clk 0:02:56]}  Nf6 {[%clk 0:02:41]} 7. Bd3 {[%clk 0:02:56]}  O-O {[%clk 0:02:41]} 8. h3 {[%clk 0:02:52]}  e5 {[%clk 0:02:28]} 9. d5 {[%clk 0:02:47]}  Ne8 {[%clk 0:02:26]} 10. g4 {[%clk 0:02:47]}  f5 {[%clk 0:02:23]} 11. gxf5 {[%clk 0:02:46]}  gxf5 {[%clk 0:02:24]} 12. Qh5 {[%clk 0:02:42]}  Nf6 {[%clk 0:02:15]} 13. Qe2 {[%clk 0:02:26]}  fxe4 {[%clk 0:02:15]} 14. Bxe4 {[%clk 0:02:25]}  Nxe4 {[%clk 0:02:16]} 15. Qxe4 {[%clk 0:02:25]}  Bf5 {[%clk 0:02:14]} 16. Qg2 {[%clk 0:02:24]}  Qc7 {[%clk 0:02:00]} 17. Ne2 {[%clk 0:02:20]}  Nd7 {[%clk 0:01:35]} 18. Rg1 {[%clk 0:02:19]}  Nf6 {[%clk 0:01:34]} 19. Nd2 {[%clk 0:02:17]}  Kh8 {[%clk 0:01:34]} 20. c4 {[%clk 0:02:10]}  Rg8 {[%clk 0:01:33]} 21. Qf3 {[%clk 0:02:09]}  Bg6 {[%clk 0:01:27]} 22. Ng3 {[%clk 0:01:50]}  e4 {[%clk 0:01:20]} 23. Qe3 {[%clk 0:01:38]}  Nxd5 {[%clk 0:01:11]} 24. cxd5 {[%clk 0:01:36]}  Bxa1 {[%clk 0:01:11]} 25. Qa3 {[%clk 0:01:27]}  Bg7 {[%clk 0:01:02]} 26. Bb2 {[%clk 0:01:16]}  e3 {[%clk 0:01:03]} 27. Bxg7+ {[%clk 0:01:13]}  Qxg7 {[%clk 0:01:03]} 28. fxe3 {[%clk 0:01:11]}  Rac8 {[%clk 0:01:00]} 29. Ke2 {[%clk 0:01:07]}  Qe5 {[%clk 0:01:00]} 30. Qa1 {[%clk 0:01:02]}  Rge8 {[%clk 0:00:58]} 31. Qxe5+ {[%clk 0:01:02]}  Rxe5 {[%clk 0:00:59]} 32. e4 {[%clk 0:01:01]}  Rc2 {[%clk 0:00:58]} 33. Kd3 {[%clk 0:01:01]}  Ra2 {[%clk 0:00:55]} 34. Nc4 {[%clk 0:01:00]}  Rxd5+ {[%clk 0:00:55]} 35. Kc3 {[%clk 0:00:59]}  Rg5 {[%clk 0:00:54]} 36. h4 {[%clk 0:00:58]}  Rg4 {[%clk 0:00:53]} 37. Ne3 {[%clk 0:00:58]}  Ra3+ {[%clk 0:00:51]} 38. Kd4 {[%clk 0:00:57]}  Rxh4 {[%clk 0:00:51]} 39. Ngf5 {[%clk 0:00:54]}  Rh3 {[%clk 0:00:45]} 40. Rd1 {[%clk 0:00:25]}  a5 {[%clk 0:00:39]} 41. Nc4 {[%clk 0:00:20]}  Ra4 {[%clk 0:00:31]} 42. bxa5 {[%clk 0:00:19]}  d5 {[%clk 0:00:23]} 43. Ke5 {[%clk 0:00:15]}  Bxf5 {[%clk 0:00:20]} 44. exf5 {[%clk 0:00:12]}  dxc4 {[%clk 0:00:20]} 45. f6 {[%clk 0:00:13]}  Rd3 {[%clk 0:00:19]} 46. Rf1 {[%clk 0:00:12]}  Rxa5+ {[%clk 0:00:18]} 47. Ke6 {[%clk 0:00:11]}  Ra6+ {[%clk 0:00:17]} 48. Ke7 {[%clk 0:00:11]}  Re3+ {[%clk 0:00:17]} 49. Kd7 {[%clk 0:00:11]}  Rd3+ {[%clk 0:00:14]} 50. Ke7 {[%clk 0:00:10]}  Re3+ {[%clk 0:00:11]} 51. Kd7 {[%clk 0:00:10]}  Kg8 {[%clk 0:00:11]} 52. Rg1+ {[%clk 0:00:05]}  Kf8 {[%clk 0:00:11]} 53. Rg7 {[%clk 0:00:05]}  Rf3 {[%clk 0:00:09]} 54. Rxh7 {[%clk 0:00:05]}  Rfxf6 {[%clk 0:00:08]} 55. Kc8 {[%clk 0:00:05]}  Rfc6+ {[%clk 0:00:08]} 56. Kxb7 {[%clk 0:00:04]}  c3 {[%clk 0:00:09]} 57. Rh1 {[%clk 0:00:02]}  c2 {[%clk 0:00:09]} 58. Rf1+ {[%clk 0:00:03]}  Ke7 {[%clk 0:00:09]} 59. Rc1 {[%clk 0:00:03]}  Kd6 {[%clk 0:00:09]} 60. Rb1 {[%clk 0:00:03]}  cxb1=Q# {[%clk 0:00:08]} 0-1


[Site "https://www.chess.com"]

[Event "Titled Tuesday Blitz March 21 Late 2023"]
[White "Gallegos Diaz, Carlos Alberto"]
[Black "lluiss"]
[WhiteFideId "3900886"]
[WhiteElo "2362"]
[BlackElo "2178"]
[Result "1-0"]
[Round "08"]
[TimeControl "180+2"]
[Date "2023.03.21"]
[WhiteClock "0:01:43"]
[BlackClock "0:00:58"]

1. e4 {[%clk 0:03:00]}  c5 {[%clk 0:02:59]} 2. Nc3 {[%clk 0:02:57]}  d6 {[%clk 0:03:00]} 3. f4 {[%clk 0:02:57]}  g6 {[%clk 0:02:58]} 4. Nf3 {[%clk 0:02:57]}  Bg7 {[%clk 0:02:58]} 5. Bc4 {[%clk 0:02:57]}  Nc6 {[%clk 0:02:58]} 6. O-O {[%clk 0:02:56]}  e6 {[%clk 0:02:58]} 7. d3 {[%clk 0:02:51]}  Nge7 {[%clk 0:02:58]} 8. Kh1 {[%clk 0:02:48]}  h6 {[%clk 0:02:57]} 9. f5 {[%clk 0:02:47]}  exf5 {[%clk 0:02:57]} 10. Qe1 {[%clk 0:02:42]}  Be6 {[%clk 0:02:42]} 11. exf5 {[%clk 0:02:40]}  Bxc4 {[%clk 0:02:30]} 12. dxc4 {[%clk 0:02:37]}  Qd7 {[%clk 0:01:35]} 13. Nd5 {[%clk 0:02:28]}  gxf5 {[%clk 0:01:21]} 14. Qg3 {[%clk 0:02:22]}  Rg8 {[%clk 0:01:18]} 15. Bxh6 {[%clk 0:02:10]}  O-O-O {[%clk 0:01:13]} 16. Bxg7 {[%clk 0:02:01]}  Nxd5 {[%clk 0:01:07]} 17. cxd5 {[%clk 0:02:00]}  f6 {[%clk 0:01:00]} 18. dxc6 {[%clk 0:01:58]}  bxc6 {[%clk 0:01:00]} 19. Rad1 {[%clk 0:01:44]}  Rxg7 {[%clk 0:00:58]} 20. Rxd6 {[%clk 0:01:43]} 1-0


[Site "https://www.chess.com"]

[Event "Titled Tuesday Blitz March 21 Late 2023"]
[White "Li, Hui"]
[Black "Khatena, Moshe"]
[WhiteFideId "15400310"]
[BlackFideId "2010461"]
[WhiteElo "1967"]
[BlackElo "2209"]
[Result "0-1"]
[Round "08"]
[TimeControl "180+2"]
[Date "2023.03.21"]
[WhiteClock "0:00:03"]
[BlackClock "0:00:40"]

1. e4 {[%clk 0:03:00]}  Nf6 {[%clk 0:02:55]} 2. e5 {[%clk 0:03:00]}  Nd5 {[%clk 0:02:54]} 3. d4 {[%clk 0:03:01]}  d6 {[%clk 0:02:54]} 4. Nf3 {[%clk 0:03:02]}  g6 {[%clk 0:02:54]} 5. Bc4 {[%clk 0:03:01]}  Nb6 {[%clk 0:02:54]} 6. Bb3 {[%clk 0:03:02]}  Bg7 {[%clk 0:02:54]} 7. O-O {[%clk 0:03:01]}  O-O {[%clk 0:02:53]} 8. a4 {[%clk 0:03:02]}  a5 {[%clk 0:02:51]} 9. Qe2 {[%clk 0:02:57]}  Nc6 {[%clk 0:02:49]} 10. Bf4 {[%clk 0:02:50]}  Bg4 {[%clk 0:02:41]} 11. Nbd2 {[%clk 0:02:30]}  Nxd4 {[%clk 0:02:39]} 12. Qe4 {[%clk 0:02:23]}  Nxb3 {[%clk 0:02:38]} 13. Nxb3 {[%clk 0:02:18]}  Bxf3 {[%clk 0:02:27]} 14. Qxf3 {[%clk 0:02:17]}  dxe5 {[%clk 0:02:21]} 15. Rfd1 {[%clk 0:02:09]}  Qc8 {[%clk 0:02:20]} 16. Bg5 {[%clk 0:02:06]}  f6 {[%clk 0:02:20]} 17. Be3 {[%clk 0:02:04]}  Kh8 {[%clk 0:01:56]} 18. Nc5 {[%clk 0:02:03]}  c6 {[%clk 0:01:52]} 19. Qe2 {[%clk 0:01:45]}  Nd5 {[%clk 0:01:50]} 20. c4 {[%clk 0:01:33]}  Nxe3 {[%clk 0:01:50]} 21. Qxe3 {[%clk 0:01:25]}  Rd8 {[%clk 0:01:36]} 22. Rac1 {[%clk 0:01:18]}  f5 {[%clk 0:01:09]} 23. Rxd8+ {[%clk 0:01:01]}  Qxd8 {[%clk 0:01:09]} 24. Ne6 {[%clk 0:00:52]}  Qd6 {[%clk 0:01:06]} 25. Nxg7 {[%clk 0:00:24]}  Kxg7 {[%clk 0:01:07]} 26. h4 {[%clk 0:00:18]}  h5 {[%clk 0:01:03]} 27. Re1 {[%clk 0:00:18]}  e4 {[%clk 0:01:03]} 28. Qb6 {[%clk 0:00:15]}  Qd2 {[%clk 0:00:55]} 29. Rf1 {[%clk 0:00:11]}  Qb4 {[%clk 0:00:55]} 30. Qd4+ {[%clk 0:00:10]}  Kf7 {[%clk 0:00:53]} 31. f3 {[%clk 0:00:10]}  exf3 {[%clk 0:00:50]} 32. Rxf3 {[%clk 0:00:11]}  Qd6 {[%clk 0:00:48]} 33. Qb6 {[%clk 0:00:06]}  Qd1+ {[%clk 0:00:43]} 34. Kh2 {[%clk 0:00:06]}  Qd6+ {[%clk 0:00:43]} 35. Kg1 {[%clk 0:00:07]}  Qd7 {[%clk 0:00:43]} 36. Rb3 {[%clk 0:00:05]}  Rd8 {[%clk 0:00:42]} 37. Qxb7 {[%clk 0:00:05]}  Qd4+ {[%clk 0:00:42]} 38. Kh2 {[%clk 0:00:02]}  Qxh4+ {[%clk 0:00:42]} 39. Rh3 {[%clk 0:00:03]}  Qf4+ {[%clk 0:00:41]} 40. Kg1 {[%clk 0:00:03]}  Rd1# {[%clk 0:00:40]} 0-1


[Site "https://www.chess.com"]

[Event "Titled Tuesday Blitz March 21 Late 2023"]
[White "Kovacevic, Radmila"]
[Black "rionelG"]
[WhiteFideId "933171"]
[WhiteElo "2194"]
[BlackElo "2263"]
[Result "1-0"]
[Round "08"]
[TimeControl "180+2"]
[Date "2023.03.21"]
[WhiteClock "0:00:24"]
[BlackClock "0:00:01"]

1. e4 {[%clk 0:02:58]}  c5 {[%clk 0:02:00]} 2. Nf3 {[%clk 0:02:57]}  d6 {[%clk 0:02:00]} 3. d4 {[%clk 0:02:56]}  cxd4 {[%clk 0:02:00]} 4. Nxd4 {[%clk 0:02:57]}  Nf6 {[%clk 0:02:00]} 5. Nc3 {[%clk 0:02:56]}  a6 {[%clk 0:02:01]} 6. a4 {[%clk 0:02:54]}  g6 {[%clk 0:01:58]} 7. Bc4 {[%clk 0:02:48]}  Bg7 {[%clk 0:01:58]} 8. h3 {[%clk 0:02:45]}  O-O {[%clk 0:01:58]} 9. O-O {[%clk 0:02:44]}  Nc6 {[%clk 0:01:58]} 10. Nxc6 {[%clk 0:02:38]}  bxc6 {[%clk 0:01:58]} 11. Be3 {[%clk 0:02:36]}  Rb8 {[%clk 0:01:50]} 12. Rb1 {[%clk 0:02:33]}  e6 {[%clk 0:01:36]} 13. Qe2 {[%clk 0:02:25]}  a5 {[%clk 0:01:17]} 14. Rfd1 {[%clk 0:02:03]}  d5 {[%clk 0:01:17]} 15. Bb3 {[%clk 0:01:40]}  Qc7 {[%clk 0:01:11]} 16. Bc5 {[%clk 0:01:34]}  Re8 {[%clk 0:01:08]} 17. e5 {[%clk 0:01:33]}  Nd7 {[%clk 0:00:48]} 18. Bd6 {[%clk 0:01:33]}  Qa7 {[%clk 0:00:45]} 19. Bxb8 {[%clk 0:01:01]}  Nxb8 {[%clk 0:00:44]} 20. Kh1 {[%clk 0:00:53]}  Ba6 {[%clk 0:00:36]} 21. Qe1 {[%clk 0:00:52]}  c5 {[%clk 0:00:32]} 22. Nb5 {[%clk 0:00:49]}  Bxb5 {[%clk 0:00:31]} 23. axb5 {[%clk 0:00:50]}  a4 {[%clk 0:00:23]} 24. Ba2 {[%clk 0:00:50]}  Qb6 {[%clk 0:00:20]} 25. c4 {[%clk 0:00:50]}  d4 {[%clk 0:00:11]} 26. Rd3 {[%clk 0:00:49]}  Nd7 {[%clk 0:00:11]} 27. f4 {[%clk 0:00:49]}  Rb8 {[%clk 0:00:10]} 28. Qd1 {[%clk 0:00:44]}  Ra8 {[%clk 0:00:09]} 29. Rc1 {[%clk 0:00:43]}  g5 {[%clk 0:00:09]} 30. g3 {[%clk 0:00:42]}  Nf8 {[%clk 0:00:08]} 31. Bb1 {[%clk 0:00:36]}  gxf4 {[%clk 0:00:08]} 32. gxf4 {[%clk 0:00:35]}  Ng6 {[%clk 0:00:08]} 33. Qg4 {[%clk 0:00:33]}  Qb7+ {[%clk 0:00:08]} 34. Kh2 {[%clk 0:00:32]}  Qe4 {[%clk 0:00:01]} 35. Rf1 {[%clk 0:00:24]} 1-0


[Site "https://www.chess.com"]

[Event "Titled Tuesday Blitz March 21 Late 2023"]
[White "Fernandez Hernandez, Gerardo"]
[Black "Horokoskii"]
[WhiteFideId "2207400"]
[WhiteElo "2217"]
[BlackElo "2078"]
[Result "0-1"]
[Round "08"]
[TimeControl "180+2"]
[Date "2023.03.21"]
[WhiteClock "0:00:10"]
[BlackClock "0:00:15"]

1. e4 {[%clk 0:02:54]}  e6 {[%clk 0:02:51]} 2. d3 {[%clk 0:02:50]}  d5 {[%clk 0:02:48]} 3. Qe2 {[%clk 0:02:50]}  dxe4 {[%clk 0:02:46]} 4. dxe4 {[%clk 0:02:51]}  e5 {[%clk 0:02:47]} 5. Nf3 {[%clk 0:02:50]}  Nc6 {[%clk 0:02:46]} 6. c3 {[%clk 0:02:45]}  Nf6 {[%clk 0:02:43]} 7. Qc2 {[%clk 0:02:45]}  Bc5 {[%clk 0:02:40]} 8. Be2 {[%clk 0:02:36]}  Be6 {[%clk 0:02:25]} 9. O-O {[%clk 0:02:26]}  h6 {[%clk 0:02:20]} 10. b4 {[%clk 0:02:22]}  Bb6 {[%clk 0:02:19]} 11. b5 {[%clk 0:02:16]}  Na5 {[%clk 0:02:18]} 12. Nxe5 {[%clk 0:02:16]}  O-O {[%clk 0:02:17]} 13. Nd2 {[%clk 0:02:07]}  Qd6 {[%clk 0:02:10]} 14. Ndc4 {[%clk 0:02:02]}  Nxc4 {[%clk 0:02:08]} 15. Nxc4 {[%clk 0:02:02]}  Qc5 {[%clk 0:02:02]} 16. Ba3 {[%clk 0:01:56]}  Qg5 {[%clk 0:01:56]} 17. Nxb6 {[%clk 0:01:50]}  axb6 {[%clk 0:01:53]} 18. Bxf8 {[%clk 0:01:49]}  Kxf8 {[%clk 0:01:53]} 19. f4 {[%clk 0:01:37]}  Qc5+ {[%clk 0:01:32]} 20. Kh1 {[%clk 0:01:36]}  Ra3 {[%clk 0:01:12]} 21. f5 {[%clk 0:01:04]}  Bc4 {[%clk 0:00:55]} 22. Rfc1 {[%clk 0:00:40]}  Qxb5 {[%clk 0:00:46]} 23. Bxc4 {[%clk 0:00:30]}  Qxc4 {[%clk 0:00:45]} 24. Qb2 {[%clk 0:00:28]}  Ra5 {[%clk 0:00:43]} 25. Qb4+ {[%clk 0:00:27]}  Qxb4 {[%clk 0:00:41]} 26. cxb4 {[%clk 0:00:28]}  Ra3 {[%clk 0:00:40]} 27. e5 {[%clk 0:00:25]}  Nd5 {[%clk 0:00:39]} 28. b5 {[%clk 0:00:18]}  Ke8 {[%clk 0:00:28]} 29. Rc2 {[%clk 0:00:16]}  Kd7 {[%clk 0:00:17]} 30. Rd1 {[%clk 0:00:16]}  c6 {[%clk 0:00:17]} 31. bxc6+ {[%clk 0:00:15]}  bxc6 {[%clk 0:00:17]} 32. Rb2 {[%clk 0:00:14]}  Kc7 {[%clk 0:00:17]} 33. Rc2 {[%clk 0:00:14]}  Ne3 {[%clk 0:00:16]} 34. Rdc1 {[%clk 0:00:12]}  Nxc2 {[%clk 0:00:15]} 35. Rxc2 {[%clk 0:00:13]}  Re3 {[%clk 0:00:15]} 36. e6 {[%clk 0:00:10]}  Re1# {[%clk 0:00:15]} 0-1


[Site "https://www.chess.com"]

[Event "Titled Tuesday Blitz March 21 Late 2023"]
[White "Clawitter, Craig"]
[Black "salgadoLO"]
[WhiteFideId "2023105"]
[WhiteElo "2224"]
[BlackElo "2180"]
[Result "0-1"]
[Round "08"]
[TimeControl "180+2"]
[Date "2023.03.21"]
[WhiteClock "0:00:01"]
[BlackClock "0:00:15"]

1. e4 {[%clk 0:02:56]}  c5 {[%clk 0:02:59]} 2. Nf3 {[%clk 0:02:57]}  e6 {[%clk 0:02:59]} 3. d4 {[%clk 0:02:57]}  cxd4 {[%clk 0:02:59]} 4. Nxd4 {[%clk 0:02:58]}  Nc6 {[%clk 0:02:59]} 5. Nc3 {[%clk 0:02:58]}  Qc7 {[%clk 0:02:59]} 6. Be3 {[%clk 0:02:56]}  a6 {[%clk 0:02:59]} 7. Qd2 {[%clk 0:02:57]}  Nf6 {[%clk 0:02:54]} 8. O-O-O {[%clk 0:02:56]}  Be7 {[%clk 0:02:45]} 9. f4 {[%clk 0:02:38]}  d6 {[%clk 0:02:41]} 10. Be2 {[%clk 0:02:34]}  Bd7 {[%clk 0:02:30]} 11. g4 {[%clk 0:02:33]}  O-O {[%clk 0:02:14]} 12. g5 {[%clk 0:02:29]}  Ne8 {[%clk 0:02:13]} 13. f5 {[%clk 0:02:29]}  Nxd4 {[%clk 0:02:06]} 14. Bxd4 {[%clk 0:02:21]}  exf5 {[%clk 0:01:54]} 15. Nd5 {[%clk 0:01:23]}  Qd8 {[%clk 0:01:54]} 16. h4 {[%clk 0:01:21]}  fxe4 {[%clk 0:01:39]} 17. Kb1 {[%clk 0:01:17]}  Bc6 {[%clk 0:01:33]} 18. Ne3 {[%clk 0:01:06]}  Nc7 {[%clk 0:01:28]} 19. Nf5 {[%clk 0:00:55]}  Ne6 {[%clk 0:01:26]} 20. Be3 {[%clk 0:00:49]}  d5 {[%clk 0:01:15]} 21. Rdg1 {[%clk 0:00:42]}  d4 {[%clk 0:01:08]} 22. Nxd4 {[%clk 0:00:41]}  Nxd4 {[%clk 0:01:07]} 23. Qxd4 {[%clk 0:00:42]}  Qxd4 {[%clk 0:01:03]} 24. Bxd4 {[%clk 0:00:43]}  Rfd8 {[%clk 0:00:53]} 25. Rd1 {[%clk 0:00:31]}  Rd6 {[%clk 0:00:45]} 26. Be5 {[%clk 0:00:21]}  Rxd1+ {[%clk 0:00:44]} 27. Rxd1 {[%clk 0:00:22]}  Rd8 {[%clk 0:00:43]} 28. Rxd8+ {[%clk 0:00:21]}  Bxd8 {[%clk 0:00:44]} 29. Kc1 {[%clk 0:00:21]}  Ba5 {[%clk 0:00:33]} 30. Bg4 {[%clk 0:00:12]}  Be1 {[%clk 0:00:27]} 31. h5 {[%clk 0:00:12]}  Bh4 {[%clk 0:00:19]} 32. Bf4 {[%clk 0:00:13]}  f6 {[%clk 0:00:17]} 33. gxf6 {[%clk 0:00:12]}  Bxf6 {[%clk 0:00:18]} 34. c3 {[%clk 0:00:11]}  Bd5 {[%clk 0:00:17]} 35. a3 {[%clk 0:00:08]}  Kf7 {[%clk 0:00:17]} 36. Kd2 {[%clk 0:00:08]}  Be6 {[%clk 0:00:17]} 37. Bxe6+ {[%clk 0:00:02]}  Kxe6 {[%clk 0:00:17]} 38. Ke3 {[%clk 0:00:03]}  Kf5 {[%clk 0:00:16]} 39. h6 {[%clk 0:00:01]}  g5 {[%clk 0:00:15]} 0-1


[Site "https://www.chess.com"]